[Event "Titled Tuesday Blitz May 24 Late 2022"]
[White "Shimanov, Aleksandr"]
[Black "Papp, Levente"]
[WhiteFideId "4198603"]
[BlackFideId "751243"]
[WhiteElo "2605"]
[BlackElo "2308"]
[Result "1-0"]
[Round "02"]
[TimeControl "180+1"]
[Date "2022.05.24"]
[WhiteClock "0:00:55"]
[BlackClock "0:00:33"]

1. e4 {[%clk 0:03:00]}  e6 {[%clk 0:03:00]} 2. Nf3 {[%clk 0:02:56]}  d5 {[%clk 0:02:59]} 3. e5 {[%clk 0:02:57]}  b6 {[%clk 0:02:56]} 4. h4 {[%clk 0:02:47]}  Ba6 {[%clk 0:02:43]} 5. d3 {[%clk 0:02:47]}  c5 {[%clk 0:02:41]} 6. Bf4 {[%clk 0:02:46]}  Nc6 {[%clk 0:02:40]} 7. Nbd2 {[%clk 0:02:46]}  Nh6 {[%clk 0:02:31]} 8. c3 {[%clk 0:02:43]}  f6 {[%clk 0:02:23]} 9. Qe2 {[%clk 0:02:22]}  Qd7 {[%clk 0:02:16]} 10. Bxh6 {[%clk 0:02:19]}  gxh6 {[%clk 0:02:15]} 11. exf6 {[%clk 0:02:19]}  O-O-O {[%clk 0:01:56]} 12. g4 {[%clk 0:02:14]}  e5 {[%clk 0:01:39]} 13. g5 {[%clk 0:02:08]}  Qc7 {[%clk 0:01:34]} 14. Qe3 {[%clk 0:02:00]}  Bd6 {[%clk 0:01:27]} 15. O-O-O {[%clk 0:01:41]}  e4 {[%clk 0:01:25]} 16. dxe4 {[%clk 0:01:39]}  Bxf1 {[%clk 0:01:21]} 17. Rhxf1 {[%clk 0:01:37]}  Bf4 {[%clk 0:01:18]} 18. Qe2 {[%clk 0:01:37]}  Rhe8 {[%clk 0:01:11]} 19. Kb1 {[%clk 0:01:26]}  c4 {[%clk 0:01:00]} 20. Rfe1 {[%clk 0:01:19]}  b5 {[%clk 0:00:53]} 21. Qf1 {[%clk 0:01:06]}  d4 {[%clk 0:00:54]} 22. Nxd4 {[%clk 0:00:59]}  Nxd4 {[%clk 0:00:54]} 23. cxd4 {[%clk 0:01:00]}  Rxd4 {[%clk 0:00:52]} 24. Nf3 {[%clk 0:00:59]}  Rdxe4 {[%clk 0:00:38]} 25. Rxe4 {[%clk 0:00:59]}  Rxe4 {[%clk 0:00:39]} 26. Qh3+ {[%clk 0:00:59]}  Kb8 {[%clk 0:00:39]} 27. Qf5 {[%clk 0:00:59]}  Re8 {[%clk 0:00:33]} 28. Qxb5+ {[%clk 0:00:55]} 1-0


[Site "https://www.chess.com"]

[Event "Titled Tuesday Blitz May 24 Late 2022"]
[White "Stojanovski, Sandi"]
[Black "Koniahli, Malek."]
[WhiteFideId "1403249"]
[BlackFideId "7603495"]
[WhiteElo "2318"]
[BlackElo "2097"]
[Result "1-0"]
[Round "02"]
[TimeControl "180+1"]
[Date "2022.05.25"]
[WhiteClock "0:00:01"]
[BlackClock "0:00:42"]

1. d3 {[%clk 0:02:59]}  Nf6 {[%clk 0:02:58]} 2. Nf3 {[%clk 0:02:59]}  d5 {[%clk 0:02:57]} 3. g3 {[%clk 0:03:00]}  e6 {[%clk 0:02:57]} 4. Bg2 {[%clk 0:03:01]}  Be7 {[%clk 0:02:58]} 5. O-O {[%clk 0:03:01]}  O-O {[%clk 0:02:59]} 6. c4 {[%clk 0:03:01]}  d4 {[%clk 0:02:58]} 7. e3 {[%clk 0:02:51]}  c5 {[%clk 0:02:57]} 8. exd4 {[%clk 0:02:50]}  cxd4 {[%clk 0:02:58]} 9. Re1 {[%clk 0:02:47]}  Nc6 {[%clk 0:02:57]} 10. a3 {[%clk 0:02:47]}  a5 {[%clk 0:02:57]} 11. Ne5 {[%clk 0:02:33]}  Nxe5 {[%clk 0:02:53]} 12. Rxe5 {[%clk 0:02:34]}  Nd7 {[%clk 0:02:53]} 13. Re1 {[%clk 0:02:12]}  Nc5 {[%clk 0:02:53]} 14. Qc2 {[%clk 0:02:10]}  f6 {[%clk 0:02:31]} 15. Nd2 {[%clk 0:02:09]}  e5 {[%clk 0:02:31]} 16. Ne4 {[%clk 0:02:06]}  Nxe4 {[%clk 0:02:28]} 17. Bxe4 {[%clk 0:02:04]}  Rb8 {[%clk 0:02:26]} 18. Bd2 {[%clk 0:02:00]}  Be6 {[%clk 0:02:12]} 19. b4 {[%clk 0:01:59]}  axb4 {[%clk 0:02:02]} 20. axb4 {[%clk 0:01:58]}  Qd7 {[%clk 0:02:03]} 21. b5 {[%clk 0:01:56]}  Bc5 {[%clk 0:01:55]} 22. Qa4 {[%clk 0:01:56]}  Rfe8 {[%clk 0:01:53]} 23. Bb4 {[%clk 0:01:52]}  Qd6 {[%clk 0:01:43]} 24. Bxc5 {[%clk 0:01:49]}  Qxc5 {[%clk 0:01:44]} 25. Qa3 {[%clk 0:01:31]}  Qc7 {[%clk 0:01:43]} 26. c5 {[%clk 0:01:14]}  Rbc8 {[%clk 0:01:40]} 27. c6 {[%clk 0:01:10]}  bxc6 {[%clk 0:01:41]} 28. Bxc6 {[%clk 0:00:59]}  Red8 {[%clk 0:01:41]} 29. Rec1 {[%clk 0:00:58]}  Qb6 {[%clk 0:01:36]} 30. Qa7 {[%clk 0:00:54]}  Rb8 {[%clk 0:01:36]} 31. Qe7 {[%clk 0:00:49]}  Bf7 {[%clk 0:01:35]} 32. Ra7 {[%clk 0:00:47]}  Rf8 {[%clk 0:01:35]} 33. Bd5 {[%clk 0:00:41]}  Qxa7 {[%clk 0:01:35]} 34. Qxa7 {[%clk 0:00:39]}  Bxd5 {[%clk 0:01:36]} 35. b6 {[%clk 0:00:35]}  Rb7 {[%clk 0:01:31]} 36. Qa5 {[%clk 0:00:33]}  Bf3 {[%clk 0:01:28]} 37. Rc7 {[%clk 0:00:32]}  Rfb8 {[%clk 0:01:28]} 38. Rxb7 {[%clk 0:00:29]}  Rxb7 {[%clk 0:01:29]} 39. g4 {[%clk 0:00:22]}  h5 {[%clk 0:01:21]} 40. gxh5 {[%clk 0:00:17]}  Kh7 {[%clk 0:01:22]} 41. h4 {[%clk 0:00:16]}  Kh6 {[%clk 0:01:21]} 42. Kh2 {[%clk 0:00:16]}  Rd7 {[%clk 0:00:59]} 43. Kg3 {[%clk 0:00:17]}  Bb7 {[%clk 0:00:59]} 44. Qc5 {[%clk 0:00:14]}  Kxh5 {[%clk 0:00:55]} 45. Qf8 {[%clk 0:00:12]}  Bc6 {[%clk 0:00:46]} 46. Qh8+ {[%clk 0:00:10]}  Kg6 {[%clk 0:00:45]} 47. f4 {[%clk 0:00:08]}  exf4+ {[%clk 0:00:41]} 48. Kxf4 {[%clk 0:00:08]}  Kf7 {[%clk 0:00:42]} 49. Qb8 {[%clk 0:00:05]}  Re7 {[%clk 0:00:41]} 50. Qd6 {[%clk 0:00:04]}  Bh1 {[%clk 0:00:38]} 51. Qxd4 {[%clk 0:00:03]}  Bb7 {[%clk 0:00:34]} 52. Qc5 {[%clk 0:00:03]}  Rd7 {[%clk 0:00:33]} 53. d4 {[%clk 0:00:03]}  Bd5 {[%clk 0:00:33]} 54. h5 {[%clk 0:00:03]}  Bb7 {[%clk 0:00:32]} 55. Qc4+ {[%clk 0:00:02]}  Bd5 {[%clk 0:00:33]} 56. Qc5 {[%clk 0:00:03]}  Rd6 {[%clk 0:00:33]} 57. Qc7+ {[%clk 0:00:02]}  Rd7 {[%clk 0:00:34]} 58. Qxd7+ {[%clk 0:00:02]}  Kg8 {[%clk 0:00:34]} 59. Qxd5+ {[%clk 0:00:03]}  Kh7 {[%clk 0:00:35]} 60. Qc6 {[%clk 0:00:04]}  g5+ {[%clk 0:00:36]} 61. Kf5 {[%clk 0:00:03]}  Kh6 {[%clk 0:00:37]} 62. Kxf6 {[%clk 0:00:03]}  Kxh5 {[%clk 0:00:38]} 63. Qb7 {[%clk 0:00:03]}  g4 {[%clk 0:00:38]} 64. Qc7 {[%clk 0:00:04]}  Kh4 {[%clk 0:00:39]} 65. b7 {[%clk 0:00:04]}  g3 {[%clk 0:00:40]} 66. b8=Q {[%clk 0:00:05]}  g2 {[%clk 0:00:41]} 67. Qh2+ {[%clk 0:00:02]}  Kg4 {[%clk 0:00:41]} 68. Qxg2+ {[%clk 0:00:02]}  Kh5 {[%clk 0:00:42]} 69. Qbh2# {[%clk 0:00:01]} 1-0


[Site "https://www.chess.com"]

[Event "Titled Tuesday Blitz May 24 Late 2022"]
[White "Sydoryka, Vladyslav"]
[Black "Ardila, Oscar Humberto"]
[WhiteFideId "14145928"]
[BlackFideId "4404742"]
[WhiteElo "2283"]
[BlackElo "1928"]
[Result "1-0"]
[Round "02"]
[TimeControl "180+1"]
[Date "2022.05.25"]
[WhiteClock "0:00:53"]
[BlackClock "0:00:16"]

1. d4 {[%clk 0:03:00]}  Nf6 {[%clk 0:02:58]} 2. c4 {[%clk 0:02:59]}  e6 {[%clk 0:02:58]} 3. Nc3 {[%clk 0:02:58]}  Bb4 {[%clk 0:02:58]} 4. f3 {[%clk 0:02:51]}  d5 {[%clk 0:02:57]} 5. a3 {[%clk 0:02:48]}  Bxc3+ {[%clk 0:02:57]} 6. bxc3 {[%clk 0:02:49]}  O-O {[%clk 0:02:58]} 7. cxd5 {[%clk 0:02:45]}  exd5 {[%clk 0:02:55]} 8. e3 {[%clk 0:02:43]}  Bf5 {[%clk 0:02:51]} 9. Ne2 {[%clk 0:02:35]}  Re8 {[%clk 0:02:51]} 10. g4 {[%clk 0:02:29]}  Bg6 {[%clk 0:02:50]} 11. h4 {[%clk 0:02:29]}  h5 {[%clk 0:02:50]} 12. g5 {[%clk 0:02:28]}  Nh7 {[%clk 0:02:48]} 13. Nf4 {[%clk 0:02:27]}  Qd6 {[%clk 0:02:41]} 14. Kf2 {[%clk 0:02:23]}  Nd7 {[%clk 0:02:36]} 15. Qb3 {[%clk 0:02:12]}  Nb6 {[%clk 0:02:33]} 16. a4 {[%clk 0:02:06]}  a5 {[%clk 0:02:30]} 17. Ba3 {[%clk 0:02:03]}  Qd7 {[%clk 0:02:30]} 18. Bb5 {[%clk 0:02:02]}  c6 {[%clk 0:02:28]} 19. Be2 {[%clk 0:02:01]}  Nc8 {[%clk 0:02:08]} 20. c4 {[%clk 0:01:59]}  dxc4 {[%clk 0:01:37]} 21. Bxc4 {[%clk 0:02:00]}  Nf8 {[%clk 0:01:36]} 22. Rad1 {[%clk 0:01:41]}  Ne7 {[%clk 0:01:09]} 23. d5 {[%clk 0:01:36]}  Nxd5 {[%clk 0:01:01]} 24. Bxd5 {[%clk 0:01:22]}  cxd5 {[%clk 0:01:02]} 25. Rxd5 {[%clk 0:01:18]}  Qc6 {[%clk 0:00:39]} 26. Rc1 {[%clk 0:01:17]}  Qa6 {[%clk 0:00:39]} 27. Rd6 {[%clk 0:01:12]}  Qa7 {[%clk 0:00:31]} 28. Nxg6 {[%clk 0:01:08]}  Nxg6 {[%clk 0:00:31]} 29. Rxg6 {[%clk 0:01:08]}  Rxe3 {[%clk 0:00:31]} 30. Qxe3 {[%clk 0:01:07]}  Qxe3+ {[%clk 0:00:32]} 31. Kxe3 {[%clk 0:01:08]}  fxg6 {[%clk 0:00:32]} 32. Rc7 {[%clk 0:01:07]}  Re8+ {[%clk 0:00:32]} 33. Kf2 {[%clk 0:01:07]}  b6 {[%clk 0:00:28]} 34. Bb2 {[%clk 0:01:07]}  Rd8 {[%clk 0:00:27]} 35. Rxg7+ {[%clk 0:01:07]}  Kf8 {[%clk 0:00:27]} 36. Bf6 {[%clk 0:01:05]}  Rd2+ {[%clk 0:00:26]} 37. Kg3 {[%clk 0:01:05]}  Ra2 {[%clk 0:00:26]} 38. Rxg6 {[%clk 0:01:05]}  Rxa4 {[%clk 0:00:26]} 39. Rh6 {[%clk 0:01:05]}  Kf7 {[%clk 0:00:24]} 40. Rxh5 {[%clk 0:00:59]}  Ra2 {[%clk 0:00:21]} 41. Rh7+ {[%clk 0:00:59]}  Ke6 {[%clk 0:00:21]} 42. Kg4 {[%clk 0:00:54]}  Ra4+ {[%clk 0:00:20]} 43. f4 {[%clk 0:00:54]}  Ra3 {[%clk 0:00:16]} 44. Re7+ {[%clk 0:00:53]}  Kd5 {[%clk 0:00:16]} 45. Re5+ {[%clk 0:00:52]}  Kd6 {[%clk 0:00:16]} 46. Be7+ {[%clk 0:00:53]} 1-0


[Site "https://www.chess.com"]

[Event "Titled Tuesday Blitz May 24 Late 2022"]
[White "Taboas Rodriguez, Daniel"]
[Black "Wesolowska, Hanna"]
[WhiteFideId "2208466"]
[BlackFideId "1104683"]
[WhiteElo "2429"]
[BlackElo "2394"]
[Result "1/2-1/2"]
[Round "02"]
[TimeControl "180+1"]
[Date "2022.05.25"]
[WhiteClock "0:00:19"]
[BlackClock "0:00:17"]

1. d4 {[%clk 0:03:00]}  Nf6 {[%clk 0:02:57]} 2. Nf3 {[%clk 0:03:00]}  c5 {[%clk 0:02:57]} 3. d5 {[%clk 0:03:00]}  g6 {[%clk 0:02:56]} 4. c4 {[%clk 0:03:01]}  b5 {[%clk 0:02:55]} 5. cxb5 {[%clk 0:02:59]}  a6 {[%clk 0:02:56]} 6. b6 {[%clk 0:03:00]}  Qxb6 {[%clk 0:02:55]} 7. Nc3 {[%clk 0:03:00]}  Bg7 {[%clk 0:02:56]} 8. e4 {[%clk 0:03:01]}  d6 {[%clk 0:02:56]} 9. Nd2 {[%clk 0:03:01]}  O-O {[%clk 0:02:56]} 10. Nc4 {[%clk 0:03:01]}  Qc7 {[%clk 0:02:56]} 11. a4 {[%clk 0:03:01]}  Bd7 {[%clk 0:02:51]} 12. Bd3 {[%clk 0:02:59]}  a5 {[%clk 0:02:51]} 13. O-O {[%clk 0:02:57]}  Na6 {[%clk 0:02:50]} 14. Na3 {[%clk 0:02:48]}  Nb4 {[%clk 0:02:50]} 15. Bb5 {[%clk 0:02:48]}  Rab8 {[%clk 0:02:45]} 16. Re1 {[%clk 0:02:46]}  e6 {[%clk 0:02:35]} 17. dxe6 {[%clk 0:02:37]}  Bxe6 {[%clk 0:02:35]} 18. Bf4 {[%clk 0:02:34]}  Rfd8 {[%clk 0:02:34]} 19. Bf1 {[%clk 0:02:25]}  Nh5 {[%clk 0:02:34]} 20. Nab5 {[%clk 0:02:24]}  Qb6 {[%clk 0:02:28]} 21. Bxd6 {[%clk 0:02:20]}  c4 {[%clk 0:02:25]} 22. e5 {[%clk 0:01:53]}  Nf4 {[%clk 0:02:22]} 23. Qf3 {[%clk 0:01:48]}  Nbd3 {[%clk 0:02:17]} 24. Bxb8 {[%clk 0:01:40]}  Qxb8 {[%clk 0:02:09]} 25. Bxd3 {[%clk 0:01:38]}  Nxd3 {[%clk 0:02:08]} 26. Re2 {[%clk 0:01:31]}  Bxe5 {[%clk 0:02:08]} 27. h3 {[%clk 0:01:26]}  Bh2+ {[%clk 0:01:57]} 28. Kh1 {[%clk 0:01:26]}  Be5 {[%clk 0:01:58]} 29. Qe3 {[%clk 0:01:07]}  Bf4 {[%clk 0:01:51]} 30. Qa7 {[%clk 0:01:03]}  Qc8 {[%clk 0:01:42]} 31. Kg1 {[%clk 0:00:32]}  Bxh3 {[%clk 0:01:39]} 32. gxh3 {[%clk 0:00:17]}  Qxh3 {[%clk 0:01:38]} 33. Qb7 {[%clk 0:00:18]}  Bh2+ {[%clk 0:01:37]} 34. Kh1 {[%clk 0:00:17]}  Bg3+ {[%clk 0:00:17]} 35. Kg1 {[%clk 0:00:18]}  Bh2+ {[%clk 0:00:17]} 36. Kh1 {[%clk 0:00:19]}  Bg3+ {[%clk 0:00:17]} 37. Kg1 {[%clk 0:00:19]}  Bh2+ {[%clk 0:00:17]} 1/2-1/2


[Site "https://www.chess.com"]

[Event "Titled Tuesday Blitz May 24 Late 2022"]
[White "Toncheva, Nadya"]
[Black "Vajda, Levente"]
[WhiteFideId "2924056"]
[BlackFideId "1203975"]
[WhiteElo "1888"]
[BlackElo "2573"]
[Result "0-1"]
[Round "02"]
[TimeControl "180+1"]
[Date "2022.05.25"]
[WhiteClock "0:00:03"]
[BlackClock "0:00:35"]

1. e4 {[%clk 0:03:00]}  e5 {[%clk 0:02:59]} 2. Nf3 {[%clk 0:03:00]}  Nc6 {[%clk 0:03:00]} 3. Bc4 {[%clk 0:03:00]}  Bc5 {[%clk 0:02:59]} 4. c3 {[%clk 0:03:00]}  Nf6 {[%clk 0:02:59]} 5. d3 {[%clk 0:03:01]}  O-O {[%clk 0:02:58]} 6. O-O {[%clk 0:03:00]}  d5 {[%clk 0:02:58]} 7. exd5 {[%clk 0:03:00]}  Nxd5 {[%clk 0:02:59]} 8. h3 {[%clk 0:03:01]}  Nb6 {[%clk 0:02:52]} 9. Bb5 {[%clk 0:03:00]}  Bd6 {[%clk 0:02:50]} 10. Re1 {[%clk 0:02:58]}  Re8 {[%clk 0:02:47]} 11. Nbd2 {[%clk 0:02:45]}  a6 {[%clk 0:02:44]} 12. Bxc6 {[%clk 0:02:44]}  bxc6 {[%clk 0:02:45]} 13. d4 {[%clk 0:02:45]}  exd4 {[%clk 0:02:41]} 14. Nxd4 {[%clk 0:02:39]}  c5 {[%clk 0:02:39]} 15. N4b3 {[%clk 0:02:13]}  Bb7 {[%clk 0:02:33]} 16. Na5 {[%clk 0:02:08]}  Bd5 {[%clk 0:02:33]} 17. Nf1 {[%clk 0:01:17]}  Qh4 {[%clk 0:02:24]} 18. Ne3 {[%clk 0:00:59]}  Qf4 {[%clk 0:01:58]} 19. Ng4 {[%clk 0:00:59]}  Qf5 {[%clk 0:01:47]} 20. Be3 {[%clk 0:00:52]}  h5 {[%clk 0:01:43]} 21. Nh2 {[%clk 0:00:53]}  Rad8 {[%clk 0:01:37]} 22. Qe2 {[%clk 0:00:40]}  Qg6 {[%clk 0:01:15]} 23. Nf3 {[%clk 0:00:38]}  Re4 {[%clk 0:01:09]} 24. Rad1 {[%clk 0:00:36]}  Rde8 {[%clk 0:01:07]} 25. b3 {[%clk 0:00:22]}  Ba8 {[%clk 0:01:06]} 26. Kf1 {[%clk 0:00:10]}  Rf4 {[%clk 0:00:58]} 27. Qd2 {[%clk 0:00:06]}  Rxf3 {[%clk 0:00:37]} 28. gxf3 {[%clk 0:00:06]}  Bxf3 {[%clk 0:00:37]} 29. Bg5 {[%clk 0:00:07]}  Rxe1+ {[%clk 0:00:36]} 30. Rxe1 {[%clk 0:00:07]}  Qf5 {[%clk 0:00:37]} 31. Re3 {[%clk 0:00:03]}  Qxh3+ {[%clk 0:00:35]} 0-1


[Site "https://www.chess.com"]

[Event "Titled Tuesday Blitz May 24 Late 2022"]
[White "Vasquez Schroeder, Rodrigo"]
[Black "Blackman, Justin"]
[WhiteFideId "3400042"]
[BlackFideId "11100516"]
[WhiteElo "2567"]
[BlackElo "2112"]
[Result "1-0"]
[Round "02"]
[TimeControl "180+1"]
[Date "2022.05.25"]
[WhiteClock "0:01:46"]
[BlackClock "0:00:05"]

1. e4 {[%clk 0:03:00]}  e5 {[%clk 0:02:59]} 2. Nf3 {[%clk 0:03:01]}  Nc6 {[%clk 0:02:59]} 3. Bb5 {[%clk 0:03:01]}  Nge7 {[%clk 0:02:59]} 4. c3 {[%clk 0:03:01]}  a6 {[%clk 0:02:59]} 5. Ba4 {[%clk 0:03:01]}  d6 {[%clk 0:02:46]} 6. d4 {[%clk 0:03:00]}  Bd7 {[%clk 0:02:47]} 7. d5 {[%clk 0:02:59]}  Nb8 {[%clk 0:02:46]} 8. c4 {[%clk 0:03:00]}  g6 {[%clk 0:02:44]} 9. h4 {[%clk 0:03:00]}  h6 {[%clk 0:02:41]} 10. h5 {[%clk 0:02:55]}  g5 {[%clk 0:02:41]} 11. Nh2 {[%clk 0:02:51]}  Bg7 {[%clk 0:02:32]} 12. Nf1 {[%clk 0:02:45]}  f5 {[%clk 0:02:32]} 13. exf5 {[%clk 0:02:44]}  Nxf5 {[%clk 0:02:32]} 14. Nc3 {[%clk 0:02:44]}  O-O {[%clk 0:02:29]} 15. Bc2 {[%clk 0:02:42]}  b5 {[%clk 0:02:24]} 16. Nd2 {[%clk 0:02:33]}  bxc4 {[%clk 0:02:15]} 17. Nxc4 {[%clk 0:02:33]}  a5 {[%clk 0:02:15]} 18. O-O {[%clk 0:02:25]}  Na6 {[%clk 0:02:08]} 19. Ne4 {[%clk 0:02:23]}  Qe8 {[%clk 0:01:49]} 20. a3 {[%clk 0:02:20]}  a4 {[%clk 0:01:46]} 21. Be3 {[%clk 0:02:18]}  Rb8 {[%clk 0:01:36]} 22. Rb1 {[%clk 0:02:17]}  Bb5 {[%clk 0:01:34]} 23. Bd3 {[%clk 0:02:16]}  Qf7 {[%clk 0:01:20]} 24. Be2 {[%clk 0:02:09]}  Ne7 {[%clk 0:01:08]} 25. Nc3 {[%clk 0:02:06]}  Bd7 {[%clk 0:01:06]} 26. Nxd6 {[%clk 0:01:58]}  cxd6 {[%clk 0:01:06]} 27. Bxa6 {[%clk 0:01:58]}  Bf5 {[%clk 0:00:41]} 28. Bd3 {[%clk 0:01:57]}  Bd7 {[%clk 0:00:22]} 29. Be2 {[%clk 0:01:50]}  Rb7 {[%clk 0:00:17]} 30. Bg4 {[%clk 0:01:48]}  Bxg4 {[%clk 0:00:10]} 31. Qxg4 {[%clk 0:01:48]}  Nxd5 {[%clk 0:00:11]} 32. Nxd5 {[%clk 0:01:47]}  Qxd5 {[%clk 0:00:12]} 33. Qxa4 {[%clk 0:01:47]}  Rb3 {[%clk 0:00:06]} 34. Rfd1 {[%clk 0:01:46]}  Qb7 {[%clk 0:00:06]} 35. Rxd6 {[%clk 0:01:46]}  Rxb2 {[%clk 0:00:06]} 36. Rxb2 {[%clk 0:01:46]}  Qxb2 {[%clk 0:00:05]} 37. Rd1 {[%clk 0:01:46]} 1-0


[Site "https://www.chess.com"]

[Event "Titled Tuesday Blitz May 24 Late 2022"]
[White "Vivas Zamora, Fabian Ernesto"]
[Black "Saim, Mohamed Ilias"]
[WhiteFideId "3902480"]
[BlackFideId "7900465"]
[WhiteElo "1987"]
[BlackElo "2006"]
[Result "1-0"]
[Round "02"]
[TimeControl "180+1"]
[Date "2022.05.25"]
[WhiteClock "0:00:11"]
[BlackClock "0:00:01"]

1. c4 {[%clk 0:03:00]}  Nf6 {[%clk 0:02:59]} 2. Nc3 {[%clk 0:02:59]}  e6 {[%clk 0:02:59]} 3. e4 {[%clk 0:02:59]}  d5 {[%clk 0:02:59]} 4. e5 {[%clk 0:03:00]}  d4 {[%clk 0:02:59]} 5. exf6 {[%clk 0:03:00]}  dxc3 {[%clk 0:03:00]} 6. bxc3 {[%clk 0:03:01]}  Qxf6 {[%clk 0:02:58]} 7. d4 {[%clk 0:03:02]}  c5 {[%clk 0:02:58]} 8. Nf3 {[%clk 0:03:00]}  cxd4 {[%clk 0:02:52]} 9. cxd4 {[%clk 0:02:06]}  Bb4+ {[%clk 0:02:51]} 10. Bd2 {[%clk 0:02:06]}  Bxd2+ {[%clk 0:02:46]} 11. Qxd2 {[%clk 0:02:07]}  O-O {[%clk 0:02:44]} 12. Bd3 {[%clk 0:02:07]}  Nc6 {[%clk 0:02:38]} 13. Be4 {[%clk 0:02:04]}  Bd7 {[%clk 0:02:33]} 14. O-O {[%clk 0:02:01]}  Rfd8 {[%clk 0:02:23]} 15. Rab1 {[%clk 0:01:58]}  Rab8 {[%clk 0:02:20]} 16. Qe3 {[%clk 0:01:43]}  Be8 {[%clk 0:02:16]} 17. d5 {[%clk 0:01:35]}  exd5 {[%clk 0:02:14]} 18. Bxd5 {[%clk 0:01:27]}  Bd7 {[%clk 0:02:04]} 19. Ng5 {[%clk 0:01:20]}  Ne5 {[%clk 0:01:41]} 20. f4 {[%clk 0:01:03]}  Ng4 {[%clk 0:01:27]} 21. Qg3 {[%clk 0:00:55]}  Nh6 {[%clk 0:00:55]} 22. Bxb7 {[%clk 0:00:41]}  Bf5 {[%clk 0:00:49]} 23. Rb3 {[%clk 0:00:35]}  Bc2 {[%clk 0:00:38]} 24. Rb5 {[%clk 0:00:22]}  Rd3 {[%clk 0:00:30]} 25. Qf2 {[%clk 0:00:20]}  Ba4 {[%clk 0:00:23]} 26. Rb4 {[%clk 0:00:19]}  Bc6 {[%clk 0:00:19]} 27. Qxa7 {[%clk 0:00:19]}  Rxb7 {[%clk 0:00:17]} 28. Rxb7 {[%clk 0:00:16]}  Bxb7 {[%clk 0:00:16]} 29. Qxb7 {[%clk 0:00:17]}  g6 {[%clk 0:00:14]} 30. Qb8+ {[%clk 0:00:14]}  Kg7 {[%clk 0:00:13]} 31. Qe5 {[%clk 0:00:15]}  Qxe5 {[%clk 0:00:10]} 32. fxe5 {[%clk 0:00:16]}  Re3 {[%clk 0:00:09]} 33. Nf3 {[%clk 0:00:15]}  Re4 {[%clk 0:00:07]} 34. Rc1 {[%clk 0:00:14]}  Nf5 {[%clk 0:00:06]} 35. c5 {[%clk 0:00:14]}  Ne7 {[%clk 0:00:05]} 36. c6 {[%clk 0:00:14]}  Nc8 {[%clk 0:00:04]} 37. c7 {[%clk 0:00:13]}  Kf8 {[%clk 0:00:03]} 38. Kf2 {[%clk 0:00:13]}  Ke7 {[%clk 0:00:02]} 39. Rc5 {[%clk 0:00:11]}  Ra4 {[%clk 0:00:02]} 40. Rc2 {[%clk 0:00:11]}  Ra7 {[%clk 0:00:01]} 41. Ke3 {[%clk 0:00:10]}  Kd7 {[%clk 0:00:01]} 42. Ng5 {[%clk 0:00:11]} 1-0


[Site "https://www.chess.com"]

[Event "Titled Tuesday Blitz May 24 Late 2022"]
[White "Vovk, Orest"]
[Black "Chyngyz, Sultai"]
[WhiteFideId "14113490"]
[BlackFideId "13803158"]
[WhiteElo "2203"]
[BlackElo "1365"]
[Result "0-1"]
[Round "02"]
[TimeControl "180+1"]
[Date "2022.05.25"]
[WhiteClock "0:00:03"]
[BlackClock "0:00:08"]

1. h4 {[%clk 0:03:00]}  Nf6 {[%clk 0:02:48]} 2. h5 {[%clk 0:02:59]}  e5 {[%clk 0:02:35]} 3. d4 {[%clk 0:02:58]}  e4 {[%clk 0:02:34]} 4. d5 {[%clk 0:02:58]}  Bc5 {[%clk 0:02:34]} 5. h6 {[%clk 0:02:55]}  g6 {[%clk 0:02:34]} 6. Nc3 {[%clk 0:02:53]}  d6 {[%clk 0:02:26]} 7. Bf4 {[%clk 0:02:48]}  Bf5 {[%clk 0:02:21]} 8. e3 {[%clk 0:02:48]}  Nbd7 {[%clk 0:02:19]} 9. Nge2 {[%clk 0:02:48]}  Qe7 {[%clk 0:02:14]} 10. Nd4 {[%clk 0:02:48]}  Bxd4 {[%clk 0:02:11]} 11. Qxd4 {[%clk 0:02:48]}  O-O-O {[%clk 0:02:02]} 12. Bg5 {[%clk 0:02:48]}  Rhe8 {[%clk 0:01:59]} 13. Qxa7 {[%clk 0:02:47]}  Nb6 {[%clk 0:01:55]} 14. Nb5 {[%clk 0:02:35]}  Qe5 {[%clk 0:01:50]} 15. Bxf6 {[%clk 0:02:24]}  Qxf6 {[%clk 0:01:49]} 16. O-O-O {[%clk 0:02:24]}  Bg4 {[%clk 0:01:44]} 17. Rd2 {[%clk 0:02:20]}  Re5 {[%clk 0:01:36]} 18. c4 {[%clk 0:02:12]}  Rf5 {[%clk 0:01:33]} 19. f3 {[%clk 0:01:41]}  exf3 {[%clk 0:01:32]} 20. gxf3 {[%clk 0:01:41]}  Rxf3 {[%clk 0:01:31]} 21. Bd3 {[%clk 0:01:33]}  Rxe3 {[%clk 0:01:28]} 22. Rf1 {[%clk 0:01:28]}  Qe7 {[%clk 0:01:21]} 23. a4 {[%clk 0:01:24]}  Be2 {[%clk 0:01:10]} 24. Bxe2 {[%clk 0:00:46]}  Rxe2 {[%clk 0:01:11]} 25. Rxe2 {[%clk 0:00:17]}  Qxe2 {[%clk 0:01:10]} 26. Rxf7 {[%clk 0:00:18]}  Qxc4+ {[%clk 0:00:27]} 27. Kb1 {[%clk 0:00:18]}  Qe4+ {[%clk 0:00:27]} 28. Ka1 {[%clk 0:00:17]}  Qxa4+ {[%clk 0:00:26]} 29. Qxa4 {[%clk 0:00:16]}  Nxa4 {[%clk 0:00:26]} 30. Rxc7+ {[%clk 0:00:17]}  Kb8 {[%clk 0:00:27]} 31. Rxh7 {[%clk 0:00:18]}  Nb6 {[%clk 0:00:25]} 32. Rg7 {[%clk 0:00:17]}  Nxd5 {[%clk 0:00:25]} 33. h7 {[%clk 0:00:17]}  Nf6 {[%clk 0:00:25]} 34. Rf7 {[%clk 0:00:10]}  Ne4 {[%clk 0:00:17]} 35. Re7 {[%clk 0:00:07]}  Nf6 {[%clk 0:00:14]} 36. Rf7 {[%clk 0:00:06]}  Ne4 {[%clk 0:00:12]} 37. Kb1 {[%clk 0:00:06]}  d5 {[%clk 0:00:11]} 38. Kc2 {[%clk 0:00:06]}  Rh8 {[%clk 0:00:11]} 39. Kd3 {[%clk 0:00:02]}  Ng5 {[%clk 0:00:10]} 40. Rg7 {[%clk 0:00:03]}  Nxh7 {[%clk 0:00:06]} 41. Kd4 {[%clk 0:00:03]}  Nf6 {[%clk 0:00:04]} 42. Kc5 {[%clk 0:00:02]}  Rc8+ {[%clk 0:00:03]} 43. Kb6 {[%clk 0:00:03]}  Ne8 {[%clk 0:00:04]} 44. Rxb7+ {[%clk 0:00:02]}  Ka8 {[%clk 0:00:05]} 45. Ra7+ {[%clk 0:00:02]}  Kb8 {[%clk 0:00:05]} 46. Re7 {[%clk 0:00:03]}  Ka8 {[%clk 0:00:06]} 47. Nc7+ {[%clk 0:00:02]}  Nxc7 {[%clk 0:00:05]} 48. Re3 {[%clk 0:00:02]}  d4 {[%clk 0:00:05]} 49. Ra3+ {[%clk 0:00:02]}  Kb8 {[%clk 0:00:06]} 50. Ra6 {[%clk 0:00:02]}  Nd5+ {[%clk 0:00:07]} 51. Kb5 {[%clk 0:00:02]}  Nc7+ {[%clk 0:00:07]} 52. Ka5 {[%clk 0:00:03]}  Nxa6 {[%clk 0:00:08]} 0-1


[Site "https://www.chess.com"]